Cogmind - Beta 12 @@@ ROGUE MODE // 2023.06.13 @ 01:56:58 Player: Gokudera ElPsyCongroo Result: Self-destructed Performance ------------- Evolutions (2) 1000 Regions Visited (8) 1600 Robots Destroyed (71) 355 Value Destroyed (1930) 1930 Prototype IDs (43) 860 Alien Tech Used (0) 0 Bonus (415) 415 TOTAL SCORE: 6160 Bonus ------- High Alert Combat Kills 25 Follower Combat Kills 90 Aligned with FarCom 300 Cogmind --------- Core Integrity 364/550 Matter 225/300 Energy 100/100 System Corruption 0% Temperature Warning (310) Movement Core (600) Ox11 Location -8/Storage Parts ------- > --- POWER (1) -------- (None) > --- PROPULSION (4) --- (None) > --- UTILITY (4) ------ Advanced Heat Sink Large Storage Unit Machine Analyzer Cloak of Protection > --- WEAPON (2) ------- Heavy Particle Cannon > --- INVENTORY (15) --- Nuclear Core Improved Heat Sink Compact Battery (200) Improved Sensor Array Transport Network Coupler Weapon Shielding Reflective Plating Datajack Mining Laser Peak State ------------ > --- POWER ------------ Deuterium Engine > --- PROPULSION ------- Aluminum Leg Aluminum Leg Carbon-fiber Leg Carbon-fiber Leg > --- UTILITY ---------- Advanced Heat Sink Large Storage Unit Machine Analyzer Cloak of Protection > --- WEAPON ----------- Spread Laser Beamcaster > --- INVENTORY -------- Improved Ion Engine Improved Treads Advanced Treads Aluminum Leg Aluminum Leg Improved Heat Sink Improved Heat Sink Compact Battery Sensor Array Transport Network Coupler Reflective Plating Heavy Particle Cannon Battle Cannon Datajack Mining Laser [Rating: 38] Favorites ----------- Power Light Ion Engine Engine Light Ion Engine Power Core Light Nuclear Core Propulsion Aluminum Leg Treads Light Treads Leg Aluminum Leg Utility Large Storage Unit Device Advanced Heat Sink Storage Large Storage Unit Processor Machine Analyzer Protection Light Armor Plating Weapon Katana Energy Gun Small Laser Energy Cannon Heavy Particle Cannon Ballistic Gun Light Assault Rifle Ballistic Cannon Battle Cannon Launcher Shock Bomb Launcher Special Weapon Mining Laser Slashing Weapon Katana Special Melee Weapon Datajack Build | -11 -10 -10 -9 -9 -9 -8 -8 -8 ------- Run | Jun Mat Min Mat Min Exi Min Mat Sto Slots Evolved 4 | . . . 2 . . . 2 . Power . | . . . . . . . . . Propulsion 2 | . . . 1 . . . 1 . Utility 2 | . . . 1 . . . 1 . Weapon . | . . . . . . . . . Parts Attached 109 | 8 16 13 20 9 3 15 15 10 Power 12 | 1 4 1 2 . . 1 3 . Engine 10 | 1 4 . 2 . . . 3 . Core 2 | . . 1 . . . 1 . . Reactor . | . . . . . . . . . Propulsion 32 | 2 2 6 5 7 . 6 1 3 Treads 5 | . 2 1 . . . 1 . 1 Leg 27 | 2 . 5 5 7 . 5 1 2 Wheel . | . . . . . . . . . Hover . | . . . . . . . . . Flight . | . . . . . . . . . Utility 32 | 1 4 2 9 2 1 4 5 4 Device 14 | 1 2 1 2 . . 2 3 3 Storage 5 | . 1 . 3 . 1 . . . Processor 3 | . . 1 . 1 . . 1 . Hackware . | . . . . . . . . . Protection 10 | . 1 . 4 1 . 2 1 1 Artifact . | . . . . . . . . . Weapon 33 | 4 6 4 4 . 2 4 6 3 Energy Gun 16 | 3 6 . . . . 2 4 1 Energy Cannon 1 | . . . . . . . . 1 Ballistic Gun 1 | 1 . . . . . . . . Ballistic Cannon 2 | . . 1 . . . . . 1 Launcher 2 | . . . 1 . . 1 . . Special Weapon 2 | . . . . . . . 2 . Impact Weapon . | . . . . . . . . . Slashing Weapon 8 | . . 3 3 . 1 1 . . Piercing Weapon . | . . . . . . . . . Special Melee Weapon 1 | . . . . . 1 . . . Unidentified Prototypes . | . . . . . . . . . Corrupted Parts 5 | . . 3 . . . 2 . . System Corruption 25 | . . 20 . . . 5 . . Parts Lost 31 | . 2 1 3 2 . 11 . 12 Power 4 | . . . 1 . . 2 . 1 Propulsion 13 | . . 1 1 1 . 3 . 7 Utility 6 | . . . 1 1 . 3 . 1 Weapon 8 | . 2 . . . . 3 . 3 Highest Loss Streak 12 | . 1 1 2 1 . 11 . 12 To Critical Strikes . | . . . . . . . . . Average Slot Usage (%) 98 | . 98 99 98 100 100 92 99 99 Engine 9 | . 14 7 9 11 11 5 8 9 Treads 4 | . 23 2 . . . . . . Leg 27 | . 4 25 32 33 33 32 36 35 Device 6 | . 14 13 . . . 5 17 9 Storage 10 | . 11 14 11 11 11 11 9 9 Processor 7 | . . . 11 6 11 11 9 9 Protection 6 | . . . 9 15 11 5 . 9 Energy Gun 10 | . 27 9 . . . 11 16 17 Slashing Weapon 11 | . . 18 21 22 18 10 . . Naked Turns . | . . . . . . . . . Heaviest Build 48 | 6 19 21 35 34 31 31 46 48 Greatest Support 50 | 20 40 40 40 35 30 35 50 50 Greatest Overweight (x) 2 | . . 1 . 1 1 2 . . Average Overweight (x) . | . . . . . . . . . Largest Inventory Capacity 15 | 5 10 10 15 15 15 15 15 15 Average Capacity 13 | 5 9 10 12 15 15 15 15 15 Most Carried 15 | 4 10 10 15 15 15 15 15 15 Average Carried 12 | 2 8 9 12 14 14 14 14 14 Final Capacity 15 | 5 10 10 15 15 15 15 15 15 Final Carried 15 | 4 10 10 15 15 15 15 15 9 Class Distribution -------------------- 68% | Scavenger-Mutant 31% | Mutant Dominant Class ---------------- Mutant | -10/Materials Mutant | -10/Mines Scavenger-Mutant | -9/Materials Scavenger-Mutant | -9/Mines Scavenger-Mutant | -9/Exiles Scavenger-Mutant | -8/Mines Scavenger-Mutant | -8/Materials Scavenger-Mutant | -8/Storage Resources | -11 -10 -10 -9 -9 -9 -8 -8 -8 ----------- Run | Jun Mat Min Mat Min Exi Min Mat Sto Matter Collected 1708 | 280 395 213 230 128 . 266 156 40 Remotely . | . . . . . . . . . Salvage Created 2695 | 30 455 119 1068 418 . 325 111 169 Parts 135 | 2 27 3 62 17 . 9 10 5 Haulers Intercepted 7 | . 2 . 5 . . . . . Recyclers Shooed . | . . . . . . . . . Parts Field Recycled . | . . . . . . . . . Retrieved Matter . | . . . . . . . . . Parts Self-Destructed . | . . . . . . . . . Prevented . | . . . . . . . . . Kills | -11 -10 -10 -9 -9 -9 -8 -8 -8 ------- Run | Jun Mat Min Mat Min Exi Min Mat Sto Combat Hostiles Destroyed 54 | 1 11 3 20 7 . 5 2 5 Melee 28 | . . 1 18 7 . 2 . . Guns 19 | . 10 2 . . . 2 2 3 Cannons 1 | . . . . . . . . 1 AOE 5 | 1 1 . 2 . . 1 . . Classes Destroyed 10 | 1 3 . 4 1 . . . 1 Worker 1 | . . . 1 . . . . . Hauler 7 | . 2 . 5 . . . . . Recycler 4 | . . . 2 1 . 1 . . Mechanic 1 | . . . 1 . . . . . Watcher 4 | . 2 . 1 . . . 1 . Swarmer 14 | . 5 . 9 . . . . . Grunt 31 | 1 6 3 7 6 . 4 . 4 Brawler 2 | . . . . 1 . 1 . . Duelist 1 | . . . . . . . . 1 Sentry 6 | . . . 4 . . . 2 . Best Kill Streak 5 | 1 3 2 5 2 . 2 2 4 Combat Bots Only 4 | 1 3 2 4 2 . 2 1 4 Max Kills in Single Turn 2 | 1 2 1 2 1 . 1 1 1 Gunslinging . | . . . . . . . . . Exploded 2 | 1 1 . 2 . . 1 . . Melee 1 | . . 1 1 1 . 1 . . Uniques/NPCs Destroyed . | . . . . . . . . . Combat | -11 -10 -10 -9 -9 -9 -8 -8 -8 -------- Run | Jun Mat Min Mat Min Exi Min Mat Sto Damage Taken 4565 | 34 532 209 796 361 . 1017 162 1454 Core 745 | . 113 64 132 34 . 216 68 118 Absorbed by Shields . | . . . . . . . . . Regen/Repaired (Parts) 11 | . 11 . . . . . . . Core Remaining (%) 44 | 100 . 29 . . . 4 . . Volleys Fired 104 | 3 41 8 2 . . 10 10 30 Largest 2 | 2 2 2 1 . . 2 2 2 Hottest 150 | 60 80 80 36 . . 140 140 150 Shots Fired 199 | 6 82 16 2 . . 17 16 60 Gun 173 | 6 82 16 . . . 15 13 41 Cannon 19 | . . . . . . . . 19 Launcher 4 | . . . 2 . . 2 . . Special 3 | . . . . . . . 3 . Kinetic 16 | 3 . . . . . . . 13 Thermal 165 | . 71 16 . . . 15 16 47 Explosive . | . . . . . . . . . Electromagnetic 18 | 3 11 . 2 . . 2 . . Robot Hit Streak 23 | 4 9 12 . . . 8 7 23 Robot Miss Streak 7 | 1 2 3 2 . . 3 7 4 Penetration Max . | . . . . . . . . . Secondary Targets . | . . . . . . . . . Shots Hit Robots 247 | 4 54 16 56 24 5 28 9 51 Core Hits 125 | 1 23 6 27 8 . 17 7 36 Critical Kills . | . . . . . . . . . Critical Parts Destroyed . | . . . . . . . . . Critical Strikes 14 | . . . 2 6 . 4 . 2 Burn 1 | . . . . . . . . 1 Blast 1 | . . . . . . . . 1 Sever 12 | . . . 2 6 . 4 . . Melee Attacks 147 | . . 6 81 35 6 19 . . Impact . | . . . . . . . . . Slashing 141 | . . 6 81 35 . 19 . . Piercing . | . . . . . . . . . Sneak Attacks 16 | . . . 9 1 5 1 . . Combat Hostiles . | . . . . . . . . . Follow-up Attacks 18 | . . 1 13 3 . 1 . . Damage Inflicted 6158 | 124 669 280 2239 837 . 847 171 991 Guns 1819 | 41 615 143 . . . 252 171 597 Cannons 394 | . . . . . . . . 394 Explosions 353 | 83 52 . 60 . . 158 . . Melee 3590 | . . 137 2179 837 . 437 . . Ramming 2 | . 2 . . . . . . . Kinetic 261 | 17 . . . . . . . 244 Thermal 1981 | 83 564 143 21 . . 252 171 747 Explosive . | . . . . . . . . . Electromagnetic 324 | 24 103 . 39 . . 158 . . Impact . | . . . . . . . . . Slashing 3590 | . . 137 2179 837 . 437 . . Piercing . | . . . . . . . . . Highest Corruption 20 | . . 20 2 5 5 11 . . Average Corruption 6 | . . 17 1 4 5 8 . . Corruption Purged . | . . . . . . . . . Corruption Blocked . | . . . . . . . . . Effects 107 | . . 17 11 15 19 45 . . Message Errors 19 | . . . 1 4 3 11 . . Matter Fused 33 | . . 7 4 4 8 10 . . Heat Flow Errors 9 | . . 3 1 2 . 3 . . Energy Discharges 17 | . . 3 1 2 3 8 . . Data Loss (minor) 23 | . . 4 4 3 3 9 . . Data Loss (major) 1 | . . . . . 1 . . . Alerts 4 | . . . . . 1 3 . . Weapon Failures 1 | . . . . . . 1 . . Overload Shots . | . . . . . . . . . Overflow Damage 149 | . . 10 104 3 . 32 . . Projectiles . | . . . . . . . . . Explosions 3 | . . . . . . 3 . . Melee 146 | . . 10 104 3 . 29 . . Knockbacks 5 | . . . . . . . . 5 Impact . | . . . . . . . . . Kinetic 3 | . . . . . . . . 3 Secondary 2 | . . . . . . . . 2 Self-Inflicted Damage 51 | . . . 20 . . 31 . . Shots 3 | . . . 1 . . 2 . . Rammed 1 | . 1 . . . . . . . Targets Rammed 1 | . 1 . . . . . . . Kicked . | . . . . . . . . . Crushed . | . . . . . . . . . Highest Temperature 383 | 58 38 206 140 109 . 238 33 383 Average Temperature 82 | 34 14 66 43 56 . 76 14 148 Received Heat Transfer 2241 | 18 192 114 312 165 . 603 9 828 Effects 2 | . . . . . . . . 2 Shutdowns 1 | . . . . . . . . 1 Interference 1 | . . . . . . . . 1 Siege Activations . | . . . . . . . . . Robots Corrupted . | . . . . . . . . . Combat Hostiles . | . . . . . . . . . Parts Fried . | . . . . . . . . . Impact Corruptions . | . . . . . . . . . Robots Melted 1 | . . . . . . . . 1 Combat Hostiles 1 | . . . . . . . . 1 Parts Melted 3 | . 1 1 . . . . . 1 Heat Transferred 3355 | 150 1250 300 . . . 384 248 1023 Parts Sabotaged . | . . . . . . . . . Parts Stolen . | . . . . . . . . . Parts Stripped . | . . . . . . . . . Power Chain Reactions 3 | 1 1 . 1 . . . . . Missiles Intercepted . | . . . . . . . . . Alert | -11 -10 -10 -9 -9 -9 -8 -8 -8 ------- Run | Jun Mat Min Mat Min Exi Min Mat Sto Peak Influence 624 | 20 216 153 624 410 . 60 134 81 Initial 225 | . 13 57 . 225 . . 5 56 Average 122 | 3 112 68 272 331 . 7 39 13 Maximum Alert Level 2 | . 1 . 2 2 . . . . Low Security (%) 76 | 100 94 100 38 . . 100 100 100 Level 1 18 | . 5 . 38 92 . . . . Level 2 5 | . . . 23 7 . . . . Level 3 . | . . . . . . . . . Level 4 . | . . . . . . . . . Level 5 . | . . . . . . . . . High Security . | . . . . . . . . . Max Security . | . . . . . . . . . Squads Dispatched 8 | . 3 . 3 . . . . 2 Investigation 5 | . 3 . 2 . . . . . Extermination . | . . . . . . . . . Reinforcement 1 | . . . 1 . . . . . Assault 2 | . . . . . . . . 2 Garrison . | . . . . . . . . . Intercept . | . . . . . . . . . Searches Triggered 1 | . . . 1 . . . . . Construction Impeded . | . . . . . . . . . Haulers Reinforced . | . . . . . . . . . Active Scanning Responses . | . . . . . . . . . Cargo Convoy Interrupts . | . . . . . . . . . Stealth | -11 -10 -10 -9 -9 -9 -8 -8 -8 --------- Run | Jun Mat Min Mat Min Exi Min Mat Sto Distress Signals 9 | . . . 6 . . . 2 1 Communications Jammed . | . . . . . . . . . Distress Signals . | . . . . . . . . . Times Spotted 124 | 1 20 4 56 17 . 7 5 14 Peak Tracking Total 9 | 1 6 2 7 6 . 5 3 9 Tactical Retreats 30 | . 2 . 16 7 . 3 1 1 Traps | -11 -10 -10 -9 -9 -9 -8 -8 -8 ------- Run | Jun Mat Min Mat Min Exi Min Mat Sto Traps Triggered 4 | . 2 . 2 . . . . . Indirectly . | . . . . . . . . . Trap Hack Attempts . | . . . . . . . . . Triggered . | . . . . . . . . . Disarmed . | . . . . . . . . . Reprogrammed . | . . . . . . . . . Reused . | . . . . . . . . . Traps Extracted . | . . . . . . . . . Installed . | . . . . . . . . . Triggered . | . . . . . . . . . Machines | -11 -10 -10 -9 -9 -9 -8 -8 -8 ---------- Run | Jun Mat Min Mat Min Exi Min Mat Sto Machines Disabled 5 | . 1 . 3 . . . . 1 Max in Single Turn 2 | . 1 . 2 . . . . 1 Machines Repaired . | . . . . . . . . . Machines Sabotaged . | . . . . . . . . . Overloaded Fab Kills . | . . . . . . . . . Hacking | -11 -10 -10 -9 -9 -9 -8 -8 -8 --------- Run | Jun Mat Min Mat Min Exi Min Mat Sto Machines Accessed 25 | . 9 2 10 1 1 . . 2 Terminals 15 | . 6 1 5 1 . . . 2 Fabricators . | . . . . . . . . . Repair Stations 3 | . 1 . 2 . . . . . Recycling Units 4 | . 2 . 2 . . . . . Scanalyzers 1 | . . . 1 . . . . . Garrison Access . | . . . . . . . . . Total Hacks 63 | . 28 3 27 2 1 . . 2 Successful 39 | . 18 1 18 . 1 . . 1 Failed 24 | . 10 2 9 2 . . . 1 Catastrophic 3 | . . . 1 1 . . . 1 Database Lockouts . | . . . . . . . . . Manual 30 | . 14 2 10 2 1 . . 1 Terminals 42 | . 21 2 15 2 . . . 2 Fabricators . | . . . . . . . . . Repair Stations 5 | . 2 . 3 . . . . . Recycling Units 8 | . 5 . 3 . . . . . Scanalyzers 6 | . . . 6 . . . . . Garrison Access . | . . . . . . . . . Terminal Hacks 19 | . 11 1 5 . 1 . . 1 Robot Analysis 4 | . 3 . 1 . . . . . Prototype ID Bank 3 | . 2 . 1 . . . . . Open Door 2 | . . 1 . . . . . 1 Branch Access Points 1 | . 1 . . . . . . . Transport Status 2 | . 2 . . . . . . . Hauler Manifests 4 | . 2 . 2 . . . . . Zone Layout 2 | . 1 . 1 . . . . . EX-Prototype ID Bank 1 | . . . . . 1 . . . Fabricator Hacks . | . . . . . . . . . Repair Station Hacks 3 | . 2 . 1 . . . . . Scan Component 2 | . 1 . 1 . . . . . Repair 1 | . 1 . . . . . . . Recycling Unit Hacks 3 | . 1 . 2 . . . . . Report Inventory 3 | . 1 . 2 . . . . . Scanalyzer 6 | . . . 6 . . . . . Insert Component 3 | . . . 3 . . . . . Analyze 3 | . . . 3 . . . . . Garrison Access Hacks . | . . . . . . . . . Unauthorized Hacks 8 | . 4 . 4 . . . . . Terminals 6 | . 3 . 3 . . . . . Botnet 6 | . 3 . 3 . . . . . Fabricators . | . . . . . . . . . Repair Stations . | . . . . . . . . . Recycling Units 2 | . 1 . 1 . . . . . Tunnel 2 | . 1 . 1 . . . . . Scanalyzers . | . . . . . . . . . Garrison Access . | . . . . . . . . . Data Cores Recovered . | . . . . . . . . . Used . | . . . . . . . . . Hacking Detections 19 | . 8 1 8 1 . . . 1 Full Trace Events . | . . . . . . . . . Feedback Events . | . . . . . . . . . Feedback Blocked . | . . . . . . . . . Robot Schematics Acquired . | . . . . . . . . . Robots Built . | . . . . . . . . . Authchips . | . . . . . . . . . Time . | . . . . . . . . . Total Robot Build Rating . | . . . . . . . . . Part Schematics Acquired 3 | . . . 3 . . . . . Parts Built . | . . . . . . . . . Authchips . | . . . . . . . . . Time . | . . . . . . . . . Total Part Build Rating . | . . . . . . . . . Parts Repaired 1 | . 1 . . . . . . . Time 26 | . 26 . . . . . . . Parts Recycled . | . . . . . . . . . Recycled Matter . | . . . . . . . . . Retrieved Matter . | . . . . . . . . . Retrieved Components . | . . . . . . . . . Parts Scanalyzed 3 | . . . 3 . . . . . Part Schematics Acquired 3 | . . . 3 . . . . . Parts Damaged . | . . . . . . . . . Bothacking | -11 -10 -10 -9 -9 -9 -8 -8 -8 ------------ Run | Jun Mat Min Mat Min Exi Min Mat Sto Used RIF Installer . | . . . . . . . . . Robots Hacked 4 | . . . . . 4 . . . Non-combat 3 | . . . . . 3 . . . Combat 1 | . . . . . 1 . . . Robot Hacks Applied 4 | . . . . . 4 . . . parse_system 4 | . . . . . 4 . . . Relay Couplers Released . | . . . . . . . . . Fabnet Peak Effective % . | . . . . . . . . . Robots Rewired . | . . . . . . . . . Allies Hacked . | . . . . . . . . . Hacks Repelled . | . . . . . . . . . Allies | -11 -10 -10 -9 -9 -9 -8 -8 -8 -------- Run | Jun Mat Min Mat Min Exi Min Mat Sto Total Allies 4 | . . 2 . . . . . 2 Largest Group 2 | . . 2 2 . . . . 2 Highest-Rated Group 62 | . . 42 39 . . . . 62 Highest-Rated Ally 31 | . . 31 28 . . . . 31 Total Orders . | . . . . . . . . . Ally Attacks 35 | . . 12 21 . . . . 2 Total Damage 485 | . . 144 299 . . . . 42 Kills 6 | . . 1 5 . . . . . Allies Corrupted . | . . . . . . . . . Allies Melted . | . . . . . . . . . Intel | -11 -10 -10 -9 -9 -9 -8 -8 -8 ------- Run | Jun Mat Min Mat Min Exi Min Mat Sto Robot Analysis Total 4 | . 3 . 1 . . . . . Derelict Logs Recovered 1 | . . 1 . . . . . . Drone Launches . | . . . . . . . . . Drone Recoveries . | . . . . . . . . . Exploration | -11 -10 -10 -9 -9 -9 -8 -8 -8 ------------- Run | Jun Mat Min Mat Min Exi Min Mat Sto Turns Passed 8927 | 105 1519 634 1712 745 964 1338 373 1537 Spaces Moved 4490 | 79 837 355 1106 396 587 651 219 260 Core 19 | 19 . . . . . . . . Treads 717 | . 698 18 . . . 1 . . Legs 3754 | 60 139 337 1106 396 587 650 219 260 Wheels . | . . . . . . . . . Hover . | . . . . . . . . . Flight . | . . . . . . . . . Fastest Speed 50 | 50 120 120 120 120 120 120 120 120 Average Speed 142 | 103 153 159 120 151 161 155 120 120 Slowest Speed 260 | 120 160 190 120 190 190 260 120 120 Overloaded Moves . | . . . . . . . . . Propulsion Burnouts . | . . . . . . . . . Robots Hopped . | . . . . . . . . . Cave-ins Triggered . | . . . . . . . . . Exploration Rate (%) 55 | 5 87 86 67 58 81 89 13 13 Regions Visited 8 Branch Regions 5 Pre-discovered Areas 2 | . 1 . 1 . . . . . Known Exits Taken 5 | . 1 1 1 . . 1 1 . Unknown Exits Taken 3 | 1 . . . 1 1 . . . Scrap Searched 4 | . . 2 . 1 . 1 . . Spaces Dug 3 | . . . . . . . 3 . Terrain Destroyed 11 | . 2 . 5 . . . 3 1 Melee . | . . . . . . . . . Projectile 4 | . . . . . . . 3 1 AOE 7 | . 2 . 5 . . . . . Terrain Rammed . | . . . . . . . . . Walls Destroyed . | . . . . . . . . . Machines Disabled . | . . . . . . . . . Actions | -11 -10 -10 -9 -9 -9 -8 -8 -8 --------- Run | Jun Mat Min Mat Min Exi Min Mat Sto Total 6643 | 93 998 402 1394 495 598 930 309 1424 Wait 1688 | . 74 . 166 52 . 228 47 1121 Move 4482 | 78 836 354 1105 395 586 650 218 260 Hop . | . . . . . . . . . Pick Up 57 | 4 14 7 16 3 1 5 6 1 Fast Attach 34 | 6 6 5 4 . . 5 8 . Attach 25 | . 2 1 6 2 . 6 2 6 Detach 6 | . . . 3 . . 1 2 . Swap 50 | 2 8 7 10 7 3 4 5 4 Drop 72 | . 16 15 17 6 2 3 11 2 Fire 104 | 3 41 8 2 . . 10 10 30 Melee 124 | . . 5 65 30 6 18 . . Ram . | . . . . . . . . . Kick . | . . . . . . . . . Crush 1 | . 1 . . . . . . . Escape Stasis . | . . . . . . . . . Rewire . | . . . . . . . . . Trap . | . . . . . . . . . Miscellaneous . | . . . . . . . . . Route ------- -11/Junkyard -10/Materials (discovered 2 exits: *Mat / *Min) -10/Mines (discovered 2 exits: *Mat x2) -9/Materials (discovered 2 exits: *Mat / *Min) -9/Mines (discovered 2 exits: *Mat / *Exi) -9/Exiles (discovered 2 exits: [*Min x2]) -8/Mines -8/Materials -8/Storage History --------- Turn | Location | Event 2 | -11/Junkyard | Met Revision 17 75 | -11/Junkyard | Discovered new exit (range 8) 106 | -11/Junkyard | Entered Materials 137 | -10/Materials | Identified exit to Mines 209 | -10/Materials | Repaired Heat Sink 306 | -10/Materials | Build established: Mutant 447 | -10/Materials | Discovered new exit (range 9) 1625 | -10/Materials | Entered Mines 1677 | -10/Mines | Core integrity fell below 50% 1832 | -10/Mines | Met a Derelict who couldn't figure out how to use a Trap Extractor 1863 | -10/Mines | System corruption reached 10% 2020 | -10/Mines | A weapon hastily lodged in a ceiling crevice suddenly fell to the ground 2151 | -10/Mines | Learned Materials stockpile data 2191 | -10/Mines | Discovered new exit (range 9) 2227 | -10/Mines | Discovered new exit (range 3) 2247 | -10/Mines | Identified exit to Materials 2259 | -10/Mines | Entered Materials 2259 | -9/Materials | Accompanied by 2 allies 2259 | -9/Materials | Evolved 2 slots: Propulsion x1, Utility x1 2264 | -9/Materials | Led the pair of lost Derelicts to an unsafe place 2896 | -9/Materials | Build established: Scavenger-Mutant 3227 | -9/Materials | Discovered new exit (range 8) 3293 | -9/Materials | Identified exit to Materials 3688 | -9/Materials | Discovered new exit (range 11) 3707 | -9/Materials | Identified exit to Mines 3859 | -9/Materials | Search patrols dispatched 3971 | -9/Materials | Entered Mines 3973 | -9/Mines | Met a Derelict bent on vengeance 4133 | -9/Mines | Discovered exit to Materials (range 10) 4640 | -9/Mines | Deemed a non-threat by the Exiles lab entrance 4640 | -9/Mines | Discovered new exit (range 5) 4716 | -9/Mines | Entered Exiles 4754 | -9/Exiles | Discovered new exit (range 14) 4821 | -9/Exiles | Met 8R-AWN 4853 | -9/Exiles | Met EX-HEX 4931 | -9/Exiles | Met EX-DEC 5164 | -9/Exiles | Met EX-BIN 5193 | -9/Exiles | Aligned with FarCom system 5195 | -9/Exiles | Given EX-Vault access code 5245 | -9/Exiles | Opened EX-Vault 5259 | -9/Exiles | Found Cloak of Protection 5300 | -9/Exiles | Warned to stay clear of 0b10 Research branches 5475 | -9/Exiles | Visited The Gauntlet 5659 | -9/Exiles | Discovered new exit (range 14) 5680 | -9/Exiles | Left Exiles lab with Cloak of Protection 5680 | -9/Exiles | Entered Mines 6313 | -8/Mines | Core integrity fell below 50% 6355 | -8/Mines | Core integrity fell below 20% 6403 | -8/Mines | System corruption reached 10% 6406 | -8/Mines | Lost 11 parts (2p3n3u3w) 7013 | -8/Mines | Discovered exit to Materials (range 5) 7018 | -8/Mines | Entered Materials 7018 | -8/Materials | Evolved 2 slots: Propulsion x1, Utility x1 7367 | -8/Materials | Discovered new exit (range 4) 7371 | -8/Materials | Identified exit to Storage 7391 | -8/Materials | Entered Storage 7399 | -8/Storage | Met a pair of Derelict thieves 8928 | -8/Storage | Self-destructed Last Messages --------------- 08904_ M-13 Machinist repairs G-50 Soldier. 08908_ Battle Cannon destroyed. 08908_ K-01 Serf collects debris. 08911_ M-13 Machinist repairs Lgt. Angular Momentum Engine. 08913_ G-47 Trooper suffers critical hit (Burn). 08915_ Aluminum Leg destroyed. 08916_ Critical hit (Burn: +37). 08916_ G-47 Trooper critical meltdown. 08916_ Aluminum Leg melted. 08918_ Critical hit (Burn: +37). 08919_ M-13 Machinist destroyed. 08920_ Aluminum Leg destroyed. 08921_ K-01 Serf collects debris. 08921_ Imp. Light Armor Plating destroyed. 08922_ Power failure, Deuterium Engine shutdown. 08924_ K-01 Serf collects debris. 08924_ Adv. Treads destroyed. 08924_ K-01 Serf collects debris. 08926_ Deuterium Engine destroyed. 08926_ Beamcaster destroyed. Map ----- +----------------------------------------------------+ | ?????????????????????????????????????????????????? | | ?????????????????????????????????????????????????? | | ?????????????????????????????????????????????????? | | ?????????????????????????????????????????????????? | | ?????????????????????????????????????????????????? | | ?????????????????????????????????????????????????? | | ?????????????????????????????????????????????????? | | ?????????????????????????????????????????????????? | | ???????????????????????g?????????????????????????? | | ?????????????????????????????????????????????????? | | ?????????????????????????????????????????????????? | | ?????????????????????????????????????????????????? | | ????????????????????? ?????????????????????????? | | ?????????????????"""# ?????????????????????????? | | ?????????????????"""# w?????????????????????????? | | ?????????????????"""# o ?????????????????????????? | | ?????????????????"""# ?????????????????????????? | | ?????????????????"""# ?????????????????????????? | | ????????????????????+ ?????????????????????????? | | ?????????????????"""# #????????????????????????? | | ?????????????????"""# #????????????????????????? | | ?????????????????"""# #????????????????????????? | | ?????????????????"""# #????????????????????????? | | ????????????Y????"""# ###??????????????????????? | | ????????????????????#!gi#T#??????????????????????? | | ??????????????Y?????#kkgl@"??????????????????????? | | ????????????????????# g%g!"??????????????????????? | | ????????????????????# %=#*"??????????????????????? | | ??????????????????? + %i###???########???????????? | | ????????????"""?""" #% #?????#!!!!#T##??????????? | | ????????????"""?"""?# #?????# #??????????? | | ????????????"""?"""?# #?????#!!!!# #??????????? | | ????????????????????# #?????###??# #??????????? | | ?????????Y??????????# ############+########????? | | ????????????????????# #????? | | ????????????????????# ###### | | ????????????????????# % # # | | ????????????????????##+##+############### # " | | ?????????????????????# #?????????# + | | ?????????????????????# % #?????????# # " | | ?????????????????????# """"% #?????????# ##T# ! | | ?????????????????????# "!!"" %#?????????# #### ! | | ?????????????????????# " =""" #?????????# #??### | | ?????????????????????# """ * #?????????# #????? | | ?????????????????????# ""!=" #?????????#####????? | | ?????????????????????# """" #??????????????????? | | ?????????????????????# #??????????????????? | | ?????????????????????##########??????????????????? | | ?????????????????????????????????????????????????? | | ?????????????????????????????????????????????????? | +----------------------------------------------------+ Best States ------------- Heat Dissipation 50 Energy Generation 15 Energy Capacity 275 Matter Stores 300 Matter Capacity 300 Sight Range 16 Terrain Scan Density 10 Cloak Strength 5 Armor Coverage 300 Resistance: TH 10 Evasion (%) 59 Recoil Reduction 2 Item Schematics ----------------- Reflective Plating | -9/Materials | Scanalyzed Axe | -9/Materials | Scanalyzed Katana | -9/Materials | Scanalyzed Robot Schematics ------------------ None Fabricated ------------ Nothing Alien Tech Used ----------------- None Achievements -------------- Close Call Challenges ------------ None Game ------ Seed SmartbombScanBuckler Manual? 0 Play Time 01:38:55 Cumulative 26.9 hours Start 2023.06.13 @ 00:09:44 End 2023.06.13 @ 01:56:58 Sessions 1 Manual Loads 0 Difficulty Rogue Special Mode None Game No. 11 Rogue 11 Adventurer 0 Explorer 0 Win Type - Total 0 Types 0/0/0/0/0/0/0/0/0 Lore% 20 Gallery% 33 Achievement% 21 Wizard Run 0 Options --------- ASCII 0 Keyboard 1 Movement Numpad Keybinds 1 Fullscreen 1 Font 24/Proggy Map View 76x50 Tactical HUD 1 Map Filters NONE Filters NONE Steam 1 RUN: fe008b70-3bb7-405d-99c8-2ae7c361a2eb